[Event "*** Titled Tuesday Blitz"]
[Site "Chess.com"]
[Date "2019.06.04"]
[Round "4"]
[White "Everyfishknows"]
[Black "KRASAVCHIK2002"]
[Result "0-1"]
[WhiteElo "2238"]
[BlackElo "2295"]
[TimeControl "180+2"]
[EndTime "13:47:08 PDT"]
[Termination "KRASAVCHIK2002 won by resignation"]

1. Nf3 {[%clk 0:03:01.9]} 1... Nf6 {[%clk 0:03:00.3]} 2. c4 {[%clk 0:03:01.9]}
2... b6 {[%clk 0:02:58.5]} 3. g3 {[%clk 0:03:02.4]} 3... Bb7 {[%clk 0:02:57]} 4.
Bg2 {[%clk 0:03:03.7]} 4... e6 {[%clk 0:02:54.1]} 5. O-O {[%clk 0:03:04.2]} 5...
Be7 {[%clk 0:02:53.4]} 6. b3 {[%clk 0:02:58.7]} 6... O-O {[%clk 0:02:53.4]} 7.
Bb2 {[%clk 0:02:59.6]} 7... c5 {[%clk 0:02:54.8]} 8. e3 {[%clk 0:02:56.4]} 8...
d6 {[%clk 0:02:52.2]} 9. Qe2 {[%clk 0:02:56.7]} 9... Na6 {[%clk 0:02:51.2]} 10.
Nc3 {[%clk 0:02:57.6]} 10... Ne4 {[%clk 0:02:43.6]} 11. d3 {[%clk 0:02:52]}
11... Nxc3 {[%clk 0:02:43.1]} 12. Bxc3 {[%clk 0:02:53.9]} 12... Bf6 {[%clk
0:02:42.1]} 13. Qb2 {[%clk 0:02:54.5]} 13... Nc7 {[%clk 0:02:30.4]} 14. Bxf6
{[%clk 0:02:52]} 14... Qxf6 {[%clk 0:02:32.3]} 15. Qxf6 {[%clk 0:02:52.8]} 15...
gxf6 {[%clk 0:02:34.2]} 16. Rad1 {[%clk 0:02:53]} 16... a6 {[%clk 0:02:25.7]}
17. d4 {[%clk 0:02:50.2]} 17... Rfd8 {[%clk 0:02:26.6]} 18. dxc5 {[%clk
0:02:20.2]} 18... dxc5 {[%clk 0:02:26.3]} 19. Nd2 {[%clk 0:02:17.5]} 19... Bxg2
{[%clk 0:02:26.3]} 20. Kxg2 {[%clk 0:02:19.4]} 20... f5 {[%clk 0:02:26.7]} 21.
Nf3 {[%clk 0:02:00.5]} 21... f6 {[%clk 0:02:25.4]} 22. Ne1 {[%clk 0:01:33.8]}
22... Rxd1 {[%clk 0:02:25.4]} 0-1

[Event "*** Titled Tuesday Blitz"]
[Site "Chess.com"]
[Date "2019.06.04"]
[Round "4"]
[White "VFernandezB"]
[Black "DiogenesSinopeus"]
[Result "0-1"]
[WhiteElo "2331"]
[BlackElo "2435"]
[TimeControl "180+2"]
[EndTime "13:47:31 PDT"]
[Termination "DiogenesSinopeus won by resignation"]

1. d4 {[%clk 0:03:01.9]} 1... Nf6 {[%clk 0:03:00.7]} 2. c4 {[%clk 0:03:01.3]}
2... e6 {[%clk 0:03:01.9]} 3. g3 {[%clk 0:03:02.1]} 3... Bb4+ {[%clk 0:03:03]}
4. Bd2 {[%clk 0:03:02.3]} 4... c5 {[%clk 0:03:04.4]} 5. Bxb4 {[%clk 0:03:03.4]}
5... cxb4 {[%clk 0:03:06.3]} 6. Bg2 {[%clk 0:03:05]} 6... O-O {[%clk 0:03:07.6]}
7. e4 {[%clk 0:03:06.7]} 7... d6 {[%clk 0:03:09.2]} 8. Ne2 {[%clk 0:03:08.2]}
8... Nc6 {[%clk 0:03:07.6]} 9. O-O {[%clk 0:03:09.1]} 9... e5 {[%clk 0:03:09]}
10. d5 {[%clk 0:03:09.9]} 10... Nb8 {[%clk 0:03:09.7]} 11. Qb3 {[%clk
0:03:08.2]} 11... Na6 {[%clk 0:03:09.3]} 12. a3 {[%clk 0:03:09]} 12... Qb6
{[%clk 0:03:06]} 13. axb4 {[%clk 0:03:08]} 13... Nxb4 {[%clk 0:03:07.9]} 14.
Nbc3 {[%clk 0:03:03.2]} 14... a5 {[%clk 0:03:02.8]} 15. Nb5 {[%clk 0:02:51.9]}
15... Nd7 {[%clk 0:03:01.4]} 16. Nc1 {[%clk 0:02:49.7]} 16... Nc5 {[%clk
0:03:02.5]} 17. Qe3 {[%clk 0:02:50.4]} 17... Bd7 {[%clk 0:03:00.1]} 18. Qe2
{[%clk 0:02:39.4]} 18... Bxb5 {[%clk 0:02:55.6]} 19. cxb5 {[%clk 0:02:41]} 19...
f5 {[%clk 0:02:56.5]} 20. exf5 {[%clk 0:02:39.2]} 20... Rxf5 {[%clk 0:02:57.8]}
21. Bh3 {[%clk 0:02:40.2]} 21... Rf6 {[%clk 0:02:58.7]} 22. Na2 {[%clk
0:02:19.4]} 22... Nbd3 {[%clk 0:02:51.5]} 23. Nc3 {[%clk 0:02:16.1]} 23... Raf8
{[%clk 0:02:49.8]} 24. Be6+ {[%clk 0:01:47.1]} 24... Kh8 {[%clk 0:02:50.7]} 25.
Ne4 {[%clk 0:01:40.2]} 25... Nxe4 {[%clk 0:02:51]} 26. Qxd3 {[%clk 0:01:41.6]}
26... Nxf2 {[%clk 0:02:52.1]} 27. Qe2 {[%clk 0:01:35.1]} 27... Nd1+ {[%clk
0:02:50]} 28. Kg2 {[%clk 0:01:30.9]} 28... Ne3+ {[%clk 0:02:40.4]} 29. Kh3
{[%clk 0:01:27.4]} 29... Rh6+ {[%clk 0:02:38.1]} 0-1

[Event "*** Titled Tuesday Blitz"]
[Site "Chess.com"]
[Date "2019.06.04"]
[Round "4"]
[White "grzechu96"]
[Black "champ2005"]
[Result "0-1"]
[WhiteElo "2575"]
[BlackElo "2830"]
[TimeControl "180+2"]
[EndTime "13:47:42 PDT"]
[Termination "champ2005 won by resignation"]

1. e4 {[%clk 0:03:01.9]} 1... c6 {[%clk 0:03:01.1]} 2. d4 {[%clk 0:02:58.2]}
2... d5 {[%clk 0:03:02.4]} 3. Nc3 {[%clk 0:02:59.5]} 3... dxe4 {[%clk
0:03:03.1]} 4. Nxe4 {[%clk 0:03:01.3]} 4... Bf5 {[%clk 0:03:04.6]} 5. Qf3 {[%clk
0:02:58.7]} 5... Bxe4 {[%clk 0:03:00.4]} 6. Qxe4 {[%clk 0:03:00.6]} 6... Nf6
{[%clk 0:03:01.6]} 7. Qd3 {[%clk 0:03:02]} 7... e6 {[%clk 0:03:00.3]} 8. Bd2
{[%clk 0:03:00.6]} 8... Nbd7 {[%clk 0:03:00.1]} 9. Nf3 {[%clk 0:03:00.8]} 9...
Be7 {[%clk 0:03:00.9]} 10. O-O-O {[%clk 0:02:54.3]} 10... Qb6 {[%clk 0:03:00.9]}
11. h3 {[%clk 0:02:44.8]} 11... a5 {[%clk 0:03:00.1]} 12. g4 {[%clk 0:02:42.4]}
12... a4 {[%clk 0:03:01.1]} 13. a3 {[%clk 0:02:43.5]} 13... O-O {[%clk
0:02:58.9]} 14. g5 {[%clk 0:02:36.5]} 14... Nd5 {[%clk 0:02:57.5]} 15. h4 {[%clk
0:02:37.2]} 15... c5 {[%clk 0:02:55.1]} 16. c4 {[%clk 0:02:35.6]} 16... Nc7
{[%clk 0:02:49.1]} 17. h5 {[%clk 0:02:23.5]} 17... cxd4 {[%clk 0:02:49.6]} 18.
g6 {[%clk 0:02:24.7]} 18... Nc5 {[%clk 0:02:46]} 19. gxh7+ {[%clk 0:02:23.8]}
19... Kh8 {[%clk 0:02:47]} 20. Qc2 {[%clk 0:02:16.5]} 20... Bf6 {[%clk
0:02:35.1]} 21. Bd3 {[%clk 0:02:15.6]} 21... Qb3 {[%clk 0:02:34.7]} 22. Bb4
{[%clk 0:02:13.4]} 22... Nxd3+ {[%clk 0:02:30.7]} 23. Rxd3 {[%clk 0:02:11.6]}
23... Qxc2+ {[%clk 0:02:30.7]} 24. Kxc2 {[%clk 0:02:13.1]} 24... Rfd8 {[%clk
0:02:31.8]} 25. Rhd1 {[%clk 0:02:08.7]} 25... e5 {[%clk 0:02:27.4]} 26. Re1
{[%clk 0:02:09.7]} 26... Re8 {[%clk 0:02:25.2]} 27. Re4 {[%clk 0:01:49.2]} 27...
Ra6 {[%clk 0:02:15.6]} 28. Rdxd4 {[%clk 0:01:46.9]} 28... exd4 {[%clk
0:02:15.8]} 0-1

[Event "*** Titled Tuesday Blitz"]
[Site "Chess.com"]
[Date "2019.06.04"]
[Round "4"]
[White "olksuna"]
[Black "kintoho"]
[Result "1/2-1/2"]
[WhiteElo "2487"]
[BlackElo "2531"]
[TimeControl "180+2"]
[EndTime "13:48:08 PDT"]
[Termination "Game drawn by repetition"]

1. c4 {[%clk 0:03:00.7]} 1... Nf6 {[%clk 0:02:59.9]} 2. Nc3 {[%clk 0:03:01.5]}
2... d5 {[%clk 0:03:00.3]} 3. cxd5 {[%clk 0:03:01.8]} 3... Nxd5 {[%clk
0:03:01.5]} 4. g3 {[%clk 0:03:02.1]} 4... g6 {[%clk 0:03:01.5]} 5. Bg2 {[%clk
0:03:03.3]} 5... Nb6 {[%clk 0:03:02.4]} 6. d3 {[%clk 0:03:02.8]} 6... Bg7 {[%clk
0:03:02.8]} 7. Be3 {[%clk 0:03:02.8]} 7... Nc6 {[%clk 0:03:03.6]} 8. h4 {[%clk
0:02:54.5]} 8... Nd4 {[%clk 0:02:58.9]} 9. h5 {[%clk 0:02:49.8]} 9... O-O {[%clk
0:02:56.5]} 10. hxg6 {[%clk 0:02:46.1]} 10... hxg6 {[%clk 0:02:57.5]} 11. Nf3
{[%clk 0:02:45.2]} 11... c5 {[%clk 0:02:53.3]} 12. Qd2 {[%clk 0:02:45.3]} 12...
Re8 {[%clk 0:02:41.7]} 13. Bh6 {[%clk 0:02:41]} 13... Bh8 {[%clk 0:02:41.7]} 14.
O-O-O {[%clk 0:02:31]} 14... Nf5 {[%clk 0:02:38.1]} 15. g4 {[%clk 0:02:27.9]}
15... Nxh6 {[%clk 0:02:38.2]} 16. Rxh6 {[%clk 0:02:14.9]} 16... Bg7 {[%clk
0:02:38.4]} 17. Rdh1 {[%clk 0:02:11.7]} 17... Bxg4 {[%clk 0:02:37.2]} 18. Rh7
{[%clk 0:02:09]} 18... Bxf3 {[%clk 0:02:14.5]} 19. Rxg7+ {[%clk 0:00:54.2]}
19... Kxg7 {[%clk 0:02:14.8]} 20. Qh6+ {[%clk 0:00:55.6]} 20... Kf6 {[%clk
0:02:15.9]} 21. Qf4+ {[%clk 0:00:49.1]} 21... Kg7 {[%clk 0:02:09.5]} 22. Qh6+
{[%clk 0:00:49.2]} 22... Kf6 {[%clk 0:02:10.7]} 23. Qf4+ {[%clk 0:00:50.7]}
23... Kg7 {[%clk 0:02:11.8]} 24. Qh6+ {[%clk 0:00:51.4]} 1/2-1/2

[Event "*** Titled Tuesday Blitz"]
[Site "Chess.com"]
[Date "2019.06.04"]
[Round "4"]
[White "benhal"]
[Black "riconaipe"]
[Result "0-1"]
[WhiteElo "2396"]
[BlackElo "2574"]
[TimeControl "180+2"]
[EndTime "13:48:16 PDT"]
[Termination "riconaipe won on time"]

1. b3 {[%clk 0:03:01.9]} 1... d5 {[%clk 0:02:59.4]} 2. Bb2 {[%clk 0:03:02.7]}
2... Bg4 {[%clk 0:03:00.4]} 3. Nf3 {[%clk 0:02:56.8]} 3... Bxf3 {[%clk
0:02:59.3]} 4. exf3 {[%clk 0:02:57.9]} 4... Nc6 {[%clk 0:02:59.2]} 5. Bb5 {[%clk
0:02:58]} 5... Nf6 {[%clk 0:02:58.7]} 6. O-O {[%clk 0:02:58.8]} 6... Qd6 {[%clk
0:02:57.4]} 7. d4 {[%clk 0:02:58.5]} 7... a6 {[%clk 0:02:55.8]} 8. Bxc6+ {[%clk
0:02:57.9]} 8... Qxc6 {[%clk 0:02:56.2]} 9. Re1 {[%clk 0:02:58.1]} 9... e6
{[%clk 0:02:57]} 10. c3 {[%clk 0:02:55.5]} 10... Bd6 {[%clk 0:02:53.4]} 11. Nd2
{[%clk 0:02:56.2]} 11... O-O {[%clk 0:02:53.8]} 12. Nf1 {[%clk 0:02:56.9]} 12...
Qd7 {[%clk 0:02:54.7]} 13. Ne3 {[%clk 0:02:50.5]} 13... c5 {[%clk 0:02:55.2]}
14. g3 {[%clk 0:02:51.5]} 14... cxd4 {[%clk 0:02:55.3]} 15. cxd4 {[%clk
0:02:52.8]} 15... Rac8 {[%clk 0:02:55.6]} 16. Rc1 {[%clk 0:02:51.7]} 16... Rxc1
{[%clk 0:02:56.2]} 17. Qxc1 {[%clk 0:02:52.8]} 17... Rc8 {[%clk 0:02:57.8]} 18.
Qd1 {[%clk 0:02:52]} 18... Rc6 {[%clk 0:02:43.7]} 19. f4 {[%clk 0:02:52.6]}
19... Ne4 {[%clk 0:02:43.1]} 20. Qd2 {[%clk 0:02:53.1]} 20... Nxd2 {[%clk
0:02:40.5]} 0-1

[Event "*** Titled Tuesday Blitz"]
[Site "Chess.com"]
[Date "2019.06.04"]
[Round "4"]
[White "orrbaverlekszarnyon"]
[Black "maxip32"]
[Result "0-1"]
[WhiteElo "2217"]
[BlackElo "2437"]
[TimeControl "180+2"]
[EndTime "13:48:26 PDT"]
[Termination "maxip32 won by resignation"]

1. e4 {[%clk 0:03:01.9]} 1... c5 {[%clk 0:03:00.3]} 2. Nf3 {[%clk 0:03:02.5]}
2... d6 {[%clk 0:03:01.6]} 3. d4 {[%clk 0:03:03.5]} 3... cxd4 {[%clk 0:03:03.5]}
4. Nxd4 {[%clk 0:03:05.4]} 4... Nf6 {[%clk 0:03:05]} 5. Nc3 {[%clk 0:03:06.3]}
5... a6 {[%clk 0:03:06.6]} 6. h3 {[%clk 0:03:07.1]} 6... e5 {[%clk 0:03:07.5]}
7. Nde2 {[%clk 0:03:08.1]} 7... h5 {[%clk 0:03:09]} 8. Bg5 {[%clk 0:03:07.9]}
8... Be6 {[%clk 0:03:10.4]} 9. g3 {[%clk 0:03:08.8]} 9... Nbd7 {[%clk
0:03:10.2]} 10. Bg2 {[%clk 0:03:09.6]} 10... Be7 {[%clk 0:03:10.9]} 11. O-O
{[%clk 0:03:10.3]} 11... b5 {[%clk 0:03:11.6]} 12. f4 {[%clk 0:03:10.5]} 12...
Rc8 {[%clk 0:03:10.4]} 13. Nd5 {[%clk 0:03:01.8]} 13... Bxd5 {[%clk 0:03:05.8]}
14. exd5 {[%clk 0:03:03]} 14... exf4 {[%clk 0:03:01.8]} 15. Nxf4 {[%clk
0:03:00.1]} 15... Ne5 {[%clk 0:02:58.8]} 16. Re1 {[%clk 0:02:53.7]} 16... g6
{[%clk 0:02:57.6]} 17. Qd4 {[%clk 0:02:48]} 17... Nfd7 {[%clk 0:02:50.6]} 18.
Bxe7 {[%clk 0:02:41.9]} 18... Qxe7 {[%clk 0:02:52.5]} 19. Nd3 {[%clk 0:02:43.1]}
19... Rxc2 {[%clk 0:02:49]} 20. h4 {[%clk 0:02:30.1]} 20... Rc4 {[%clk
0:02:48.3]} 21. Qa7 {[%clk 0:02:20.5]} 21... O-O {[%clk 0:02:28.3]} 22. Qxa6
{[%clk 0:01:57.8]} 22... Qf6 {[%clk 0:02:26.3]} 23. Rf1 {[%clk 0:01:34.2]} 23...
Qe7 {[%clk 0:02:21.3]} 24. Rae1 {[%clk 0:01:26.6]} 24... Nc5 {[%clk 0:02:01.9]}
25. Qxb5 {[%clk 0:00:57.2]} 25... Ncxd3 {[%clk 0:02:02.3]} 26. Qxc4 {[%clk
0:00:58.6]} 26... Qa7+ {[%clk 0:02:02.9]} 0-1

[Event "*** Titled Tuesday Blitz"]
[Site "Chess.com"]
[Date "2019.06.04"]
[Round "4"]
[White "chorejason"]
[Black "Rakesh"]
[Result "1-0"]
[WhiteElo "2257"]
[BlackElo "2245"]
[TimeControl "180+2"]
[EndTime "13:48:43 PDT"]
[Termination "chorejason won by checkmate"]

1. e4 {[%clk 0:03:01.9]} 1... d5 {[%clk 0:02:54.4]} 2. d4 {[%clk 0:03:03.2]}
2... dxe4 {[%clk 0:02:54.9]} 3. Nc3 {[%clk 0:03:04.4]} 3... Nf6 {[%clk
0:02:52.2]} 4. Bg5 {[%clk 0:03:04.6]} 4... Bf5 {[%clk 0:02:51.1]} 5. Qd2 {[%clk
0:03:05.6]} 5... h6 {[%clk 0:02:41.6]} 6. Bh4 {[%clk 0:03:04.7]} 6... c6 {[%clk
0:02:38.9]} 7. O-O-O {[%clk 0:03:05]} 7... g5 {[%clk 0:02:37.8]} 8. Bg3 {[%clk
0:03:05.6]} 8... Bg7 {[%clk 0:02:39.3]} 9. Bc4 {[%clk 0:03:03.8]} 9... Nbd7
{[%clk 0:02:39.7]} 10. Nge2 {[%clk 0:03:03.4]} 10... Nb6 {[%clk 0:02:40.1]} 11.
Bb3 {[%clk 0:03:04.7]} 11... a5 {[%clk 0:02:38.3]} 12. a4 {[%clk 0:03:01.8]}
12... O-O {[%clk 0:02:34]} 13. h4 {[%clk 0:03:02.8]} 13... g4 {[%clk 0:02:31.9]}
14. f3 {[%clk 0:03:04]} 14... exf3 {[%clk 0:02:28.1]} 15. gxf3 {[%clk
0:03:05.2]} 15... gxf3 {[%clk 0:02:30]} 16. Nf4 {[%clk 0:03:06.4]} 16... Ne4
{[%clk 0:02:18.9]} 17. Nxe4 {[%clk 0:03:02.1]} 17... Bxe4 {[%clk 0:02:20.8]} 18.
Nh5 {[%clk 0:03:02.1]} 18... Nd5 {[%clk 0:02:07.8]} 19. Rhg1 {[%clk 0:02:59.8]}
19... Bg6 {[%clk 0:02:04.9]} 20. Nxg7 {[%clk 0:02:49]} 20... Kxg7 {[%clk
0:02:05.3]} 21. h5 {[%clk 0:02:34.3]} 21... Kh7 {[%clk 0:02:03.9]} 22. hxg6+
{[%clk 0:02:33]} 22... fxg6 {[%clk 0:02:05.8]} 23. Be5 {[%clk 0:02:30.7]} 23...
Rf5 {[%clk 0:02:02.7]} 24. c3 {[%clk 0:02:27]} 24... f2 {[%clk 0:01:58.7]} 25.
Rgf1 {[%clk 0:02:25]} 25... Qf8 {[%clk 0:01:48.8]} 26. Bc2 {[%clk 0:02:18.3]}
26... Rf3 {[%clk 0:01:46.5]} 27. Be4 {[%clk 0:02:15.3]} 27... Rf7 {[%clk
0:01:28.5]} 28. Qg5 {[%clk 0:02:07.4]} 28... hxg5 {[%clk 0:01:09.9]} 29. Rh1+
{[%clk 0:02:08.1]} 29... Qh6 {[%clk 0:00:52.6]} 30. Rxh6+ {[%clk 0:02:06.1]}
30... Kxh6 {[%clk 0:00:53.9]} 31. Rh1# {[%clk 0:02:07]} 1-0

[Event "*** Titled Tuesday Blitz"]
[Site "Chess.com"]
[Date "2019.06.04"]
[Round "4"]
[White "nocnypako"]
[Black "x-5963514717"]
[Result "1/2-1/2"]
[WhiteElo "2559"]
[BlackElo "2483"]
[TimeControl "180+2"]
[EndTime "13:48:45 PDT"]
[Termination "Game drawn by agreement"]

1. d4 {[%clk 0:03:01.8]} 1... Nf6 {[%clk 0:03:00.8]} 2. c4 {[%clk 0:03:02.2]}
2... g6 {[%clk 0:03:02.1]} 3. Nc3 {[%clk 0:03:02.2]} 3... d5 {[%clk 0:03:03.4]}
4. cxd5 {[%clk 0:03:02.3]} 4... Nxd5 {[%clk 0:03:05.3]} 5. e4 {[%clk 0:03:03.2]}
5... Nxc3 {[%clk 0:03:06.7]} 6. bxc3 {[%clk 0:03:05.1]} 6... Bg7 {[%clk
0:03:08.3]} 7. Bc4 {[%clk 0:03:06.5]} 7... c5 {[%clk 0:03:09.7]} 8. Ne2 {[%clk
0:03:07.6]} 8... Nc6 {[%clk 0:03:10.6]} 9. Be3 {[%clk 0:03:08.4]} 9... O-O
{[%clk 0:03:10.5]} 10. O-O {[%clk 0:03:09.7]} 10... b6 {[%clk 0:03:10.3]} 11.
Qd2 {[%clk 0:03:09.1]} 11... Bb7 {[%clk 0:02:48.2]} 12. Rac1 {[%clk 0:03:02.9]}
12... e6 {[%clk 0:02:42.9]} 13. Rfd1 {[%clk 0:03:01.3]} 13... cxd4 {[%clk
0:02:34.3]} 14. cxd4 {[%clk 0:03:01.3]} 14... Na5 {[%clk 0:02:35.7]} 15. Bd3
{[%clk 0:03:00.3]} 15... Rc8 {[%clk 0:02:33.1]} 16. Bh6 {[%clk 0:02:54.8]} 16...
Rxc1 {[%clk 0:02:26.8]} 17. Rxc1 {[%clk 0:02:55.3]} 17... Bxh6 {[%clk 0:02:28]}
18. Qxh6 {[%clk 0:02:56.6]} 18... Nc6 {[%clk 0:02:20.6]} 19. Qe3 {[%clk
0:02:53.3]} 19... Qd6 {[%clk 0:02:21.6]} 20. e5 {[%clk 0:02:46.4]} 20... Qd7
{[%clk 0:02:22.2]} 21. h4 {[%clk 0:02:15.6]} 21... Rc8 {[%clk 0:02:14.3]} 22. h5
{[%clk 0:01:51.9]} 22... Nb4 {[%clk 0:02:08.9]} 23. Rxc8+ {[%clk 0:01:53.8]}
23... Qxc8 {[%clk 0:02:10.8]} 24. Bb1 {[%clk 0:01:52.8]} 24... Nd5 {[%clk
0:02:10.8]} 25. Qg5 {[%clk 0:01:44.9]} 25... Nc3 {[%clk 0:02:07.5]} 26. Nxc3
{[%clk 0:01:43.5]} 26... Qxc3 {[%clk 0:02:09.4]} 27. Qd8+ {[%clk 0:01:41.5]}
27... Kg7 {[%clk 0:02:09.7]} 28. Qf6+ {[%clk 0:01:42.5]} 28... Kg8 {[%clk
0:02:02.8]} 1/2-1/2

[Event "*** Titled Tuesday Blitz"]
[Site "Chess.com"]
[Date "2019.06.04"]
[Round "4"]
[White "Jabberwockiez"]
[Black "sergeikim"]
[Result "1-0"]
[WhiteElo "2248"]
[BlackElo "2395"]
[TimeControl "180+2"]
[EndTime "13:48:58 PDT"]
[Termination "Jabberwockiez won by resignation"]

1. e4 {[%clk 0:03:01.9]} 1... e5 {[%clk 0:03:00.5]} 2. Nf3 {[%clk 0:03:02.3]}
2... Nc6 {[%clk 0:03:01.4]} 3. Bb5 {[%clk 0:03:03.4]} 3... a6 {[%clk 0:03:02.2]}
4. Ba4 {[%clk 0:03:04.6]} 4... Nf6 {[%clk 0:03:02.2]} 5. O-O {[%clk 0:03:05.6]}
5... Be7 {[%clk 0:03:02.6]} 6. Re1 {[%clk 0:03:06.6]} 6... b5 {[%clk 0:03:02.9]}
7. Bb3 {[%clk 0:03:07.7]} 7... O-O {[%clk 0:03:03.5]} 8. h3 {[%clk 0:03:09.2]}
8... Bb7 {[%clk 0:03:03.4]} 9. d3 {[%clk 0:03:09.9]} 9... d6 {[%clk 0:03:03.9]}
10. a3 {[%clk 0:03:10.3]} 10... Na5 {[%clk 0:03:03.8]} 11. Ba2 {[%clk
0:03:11.1]} 11... c5 {[%clk 0:03:04.3]} 12. Nc3 {[%clk 0:03:12.1]} 12... Rc8
{[%clk 0:03:04.9]} 13. Nd5 {[%clk 0:03:11]} 13... c4 {[%clk 0:03:05.4]} 14.
Nxe7+ {[%clk 0:03:03.1]} 14... Qxe7 {[%clk 0:03:05.5]} 15. b4 {[%clk 0:03:03.1]}
15... cxb3 {[%clk 0:03:00.2]} 16. cxb3 {[%clk 0:03:04.2]} 16... h6 {[%clk
0:02:47.5]} 17. b4 {[%clk 0:02:51.8]} 17... Nc6 {[%clk 0:02:47.3]} 18. Nh4
{[%clk 0:02:47.6]} 18... Qd7 {[%clk 0:02:39.1]} 19. Nf5 {[%clk 0:02:45.5]} 19...
Nd4 {[%clk 0:02:25.6]} 20. Nxd4 {[%clk 0:02:41.4]} 20... exd4 {[%clk 0:02:26.3]}
21. Bb2 {[%clk 0:02:37.3]} 21... d5 {[%clk 0:02:07.6]} 22. Bxd4 {[%clk
0:02:34.2]} 22... dxe4 {[%clk 0:02:03.9]} 23. Bxf6 {[%clk 0:02:33.9]} 23... gxf6
{[%clk 0:02:04.6]} 24. Qh5 {[%clk 0:02:12]} 24... Kg7 {[%clk 0:01:58]} 25. Re3
{[%clk 0:02:06.8]} 25... Rh8 {[%clk 0:01:35.3]} 26. dxe4 {[%clk 0:01:46.8]}
26... Rc2 {[%clk 0:01:10.6]} 27. Rd1 {[%clk 0:01:39.4]} 27... Qe7 {[%clk
0:01:06.6]} 28. Rg3+ {[%clk 0:01:35.3]} 28... Kf8 {[%clk 0:01:04.6]} 29. Rd8+
{[%clk 0:01:35.9]} 1-0

[Event "*** Titled Tuesday Blitz"]
[Site "Chess.com"]
[Date "2019.06.04"]
[Round "4"]
[White "ZaphenathPaneah"]
[Black "LarissaSteenbekkers"]
[Result "1/2-1/2"]
[WhiteElo "1862"]
[BlackElo "1960"]
[TimeControl "180+2"]
[EndTime "13:48:58 PDT"]
[Termination "Game drawn by repetition"]

1. e4 {[%clk 0:03:01.5]} 1... e6 {[%clk 0:03:00.2]} 2. d4 {[%clk 0:03:02.5]}
2... d5 {[%clk 0:03:00.5]} 3. e5 {[%clk 0:03:03.9]} 3... c5 {[%clk 0:02:59.3]}
4. c3 {[%clk 0:03:05.4]} 4... Nc6 {[%clk 0:02:59.9]} 5. Nf3 {[%clk 0:03:06.8]}
5... Bd7 {[%clk 0:02:59.5]} 6. Bd3 {[%clk 0:03:08.1]} 6... Rc8 {[%clk
0:02:57.3]} 7. a3 {[%clk 0:03:07.8]} 7... cxd4 {[%clk 0:02:54.9]} 8. cxd4 {[%clk
0:03:08.8]} 8... Qb6 {[%clk 0:02:54.2]} 9. O-O {[%clk 0:03:06.4]} 9... Nxd4
{[%clk 0:02:53.3]} 10. Nbd2 {[%clk 0:03:07.7]} 10... Nxf3+ {[%clk 0:02:51.6]}
11. Nxf3 {[%clk 0:03:08.7]} 11... Ne7 {[%clk 0:02:50.2]} 12. Be3 {[%clk
0:03:09.3]} 12... Qa5 {[%clk 0:02:45.9]} 13. b4 {[%clk 0:03:09.3]} 13... Qa4
{[%clk 0:02:46.2]} 14. Qd2 {[%clk 0:03:06.9]} 14... Ng6 {[%clk 0:02:42.2]} 15.
Rfc1 {[%clk 0:03:05.2]} 15... Be7 {[%clk 0:02:30.2]} 16. Rxc8+ {[%clk
0:02:49.8]} 16... Bxc8 {[%clk 0:02:28.9]} 17. h4 {[%clk 0:02:43.4]} 17... Nxh4
{[%clk 0:02:25.6]} 18. Nxh4 {[%clk 0:02:43.3]} 18... Bxh4 {[%clk 0:02:24.7]} 19.
Bg5 {[%clk 0:02:44.9]} 19... Bxg5 {[%clk 0:02:23.7]} 20. Qxg5 {[%clk 0:02:45.9]}
20... O-O {[%clk 0:02:21.8]} 21. Re1 {[%clk 0:02:35.4]} 21... f5 {[%clk
0:02:14.8]} 22. exf6 {[%clk 0:02:34.1]} 22... Rxf6 {[%clk 0:02:12.4]} 23. Re3
{[%clk 0:02:30.3]} 23... Qd1+ {[%clk 0:02:06.5]} 24. Kh2 {[%clk 0:02:28.6]}
24... h6 {[%clk 0:02:05]} 25. Qe5 {[%clk 0:02:22.8]} 25... Qg4 {[%clk
0:01:47.1]} 26. Rg3 {[%clk 0:02:20]} 26... Qh4+ {[%clk 0:01:47.2]} 27. Kg1
{[%clk 0:02:20.3]} 27... Qf4 {[%clk 0:01:44.5]} 28. Qc3 {[%clk 0:02:10.2]} 28...
Qxf2+ {[%clk 0:01:41.6]} 29. Kh2 {[%clk 0:02:11.5]} 29... Bd7 {[%clk 0:01:28.4]}
30. Qc7 {[%clk 0:02:11.4]} 30... Rf7 {[%clk 0:01:22.7]} 31. Qd8+ {[%clk
0:02:11.5]} 31... Rf8 {[%clk 0:01:19.5]} 32. Qxd7 {[%clk 0:02:12.5]} 32... Qf6
{[%clk 0:01:18.9]} 33. Rg6 {[%clk 0:01:54.1]} 33... Qh4+ {[%clk 0:01:14.7]} 34.
Kg1 {[%clk 0:01:55.1]} 34... Qf2+ {[%clk 0:01:14.4]} 35. Kh1 {[%clk 0:01:53.8]}
35... Qh4+ {[%clk 0:01:14.4]} 36. Kg1 {[%clk 0:01:54.4]} 36... Qf2+ {[%clk
0:01:14.2]} 37. Kh2 {[%clk 0:01:55.8]} 37... Qh4+ {[%clk 0:01:13.4]} 38. Kg1
{[%clk 0:01:56.9]} 1/2-1/2

[Event "*** Titled Tuesday Blitz"]
[Site "Chess.com"]
[Date "2019.06.04"]
[Round "4"]
[White "Naruto-K"]
[Black "guillembaches"]
[Result "1-0"]
[WhiteElo "2393"]
[BlackElo "2269"]
[TimeControl "180+2"]
[EndTime "13:49:07 PDT"]
[Termination "Naruto-K won by resignation"]

1. d4 {[%clk 0:03:01.9]} 1... Nf6 {[%clk 0:03:00.5]} 2. Bf4 {[%clk 0:03:03.3]}
2... e6 {[%clk 0:03:01]} 3. e3 {[%clk 0:03:04.6]} 3... c5 {[%clk 0:03:02.1]} 4.
c3 {[%clk 0:03:04.9]} 4... Nc6 {[%clk 0:03:03.1]} 5. Nd2 {[%clk 0:03:05.3]} 5...
d5 {[%clk 0:03:03.7]} 6. Ngf3 {[%clk 0:03:04.5]} 6... Bd6 {[%clk 0:03:04.5]} 7.
Bg3 {[%clk 0:03:03.3]} 7... O-O {[%clk 0:03:05.2]} 8. Bb5 {[%clk 0:03:02.9]}
8... Qc7 {[%clk 0:03:05.8]} 9. dxc5 {[%clk 0:03:02.1]} 9... Bxg3 {[%clk
0:03:04.5]} 10. hxg3 {[%clk 0:03:02.8]} 10... a6 {[%clk 0:03:04.6]} 11. Bd3
{[%clk 0:03:02.8]} 11... e5 {[%clk 0:03:03.3]} 12. e4 {[%clk 0:02:39.2]} 12...
Rd8 {[%clk 0:02:52]} 13. Qe2 {[%clk 0:02:39]} 13... Bg4 {[%clk 0:02:45.5]} 14.
O-O-O {[%clk 0:02:29.4]} 14... Qa5 {[%clk 0:02:38]} 15. exd5 {[%clk 0:02:00]}
15... Rxd5 {[%clk 0:02:38.2]} 16. Bxh7+ {[%clk 0:01:59.7]} 16... Nxh7 {[%clk
0:02:28.2]} 17. Rxh7 {[%clk 0:02:01.6]} 17... Kxh7 {[%clk 0:01:49]} 18. Qe4+
{[%clk 0:02:01.5]} 18... Kg8 {[%clk 0:01:47]} 19. Qxd5 {[%clk 0:02:01]} 19...
Rd8 {[%clk 0:01:32.6]} 20. Qc4 {[%clk 0:02:00.8]} 20... b5 {[%clk 0:01:14]} 21.
Qxg4 {[%clk 0:01:57.1]} 21... Qxa2 {[%clk 0:01:15.1]} 22. Qe4 {[%clk 0:01:50.8]}
22... Na5 {[%clk 0:01:11.3]} 23. c6 {[%clk 0:01:10.4]} 23... Nb3+ {[%clk
0:01:02]} 24. Nxb3 {[%clk 0:01:10.3]} 1-0